Workbook

Sheet CONSOLIDATED STATEMENTS OF INCO
A1: CONSOLIDATED STATEMENTS OF INCOME - USD ($) $ in Millions | B1: 12 Months Ended
B2: Dec. 29, 2017 | C2: Common Size 2017 | D2: Dec. 30, 2016 | E2: Common Size 2016 | F2: Jan. 01, 2016 | G2: Horizontal Analysis
A3: Income Statement [Abstract]
A4: Net sales | B4: $4,085.90 | C4: =B4/B$4 -> 100.0% | D4: $4,011.50 | E4: =D4/D$4 -> 100.0% | F4: $ 4,056.5 | G4: =(B4-D4)/D4 -> 1.9%
A5: Cost of products sold | B5: 3,754.3 | C5: =B5/B$4 -> 91.9% | D5: 3,550.1 | E5: =D5/D$4 -> 88.5% | F5: 3,714.2 | G5: =(B5-D5)/D5 -> 5.8%
A6: Gross profit | B6: 331.6 | C6: 8.1% | D6: 461.4 | E6: 11.5% | F6: 342.3 | G6: -28.1%
A7: Selling, general and administrative expenses | B7: 173.2 | C7: 4.2% | D7: 187.4 | E7: 4.7% | F7: 183.9 | G7: -7.6%
A8: Loss (gain) on disposal of property, plant and equipment | B8: 3.0 | C8: 0.1% | D8: 0.0 | E8: 0.0% | F8: (2.1)
A9: Goodwill and trademarks impairment charges | B9: 0.9 | C9: 0.0% | D9: 2.6 | E9: 0.1% | F9: 66.1 | G9: -65.4%
A10: Asset impairment and other charges, net | B10: 1.8 | C10: 0.0% | D10: 27.2 | E10: 0.7% | F10: 3.4 | G10: -93.4%
A11: Operating income | B11: 152.7 | C11: 3.7% | D11: 244.2 | E11: 6.1% | F11: 91 | G11: -37.5%
A12: Interest expense | B12: 6.4 | C12: 0.2% | D12: 4.1 | E12: 0.1% | F12: 4.3 | G12: 56.1%
A13: Interest income | B13: 0.8 | C13: 0.0% | D13: 0.7 | E13: 0.0% | F13: 0.6 | G13: 14.3%
A14: Other expense, net | B14: 3.0 | C14: 0.1% | D14: 3.4 | E14: 0.1% | F14: 7.2 | G14: -11.8%
A15: Income before income taxes | B15: 144.1 | C15: 3.5% | D15: 237.4 | E15: 5.9% | F15: 80.1 | G15: -39.3%
A16: Provision for income taxes | B16: 24.9 | C16: 0.6% | D16: 11.8 | E16: 0.3% | F16: 13.7 | G16: 111.0%
A17: Net income | B17: 119.2 | C17: 2.9% | D17: 225.6 | E17: 5.6% | F17: 66.4 | G17: -47.2%

Sheet CONSOLIDATED BALANCE SHEETS
A1: CONSOLIDATED BALANCE SHEETS - USD ($) $ in Millions | B1: Dec. 29, 2017 | C1: Common Size 2017 | D1: Dec. 30, 2016 | E1: Common Size 2016 | F1: Horizonal Analysis
A2: Current assets:
A3: Cash and cash equivalents | B3: $25.10 | C3: =B3/B$14 -> 0.9% | D3: $20.10 | E3: =D3/D$14 -> 0.8% | F3: =(B3-D3)/D3 -> 24.9%
A4: Trade accounts receivable, net of allowance of $12.8 and $11.3, respectively | B4: 358.8 | C4: =B4/B$14 -> 13.0% | D4: 349.2 | E4: =D4/D$14 -> 13.2% | F4: =(B4-D4)/D4 -> 2.7%
A5: Other accounts receivable, net of allowance of $8.8 and $7.8, respectively | B5: 73.6 | C5: 2.7% | D5: 63.0 | E5: 2.4% | F5: 16.8%
A6: Inventories, net | B6: 541.8 | C6: 19.6% | D6: 493.2 | E6: 18.6% | F6: 9.9%
A7: Prepaid expenses and other current assets | B7: 20.5 | C7: 0.7% | D7: 35.6 | E7: 1.3% | F7: -42.4%
A8: Total current assets | B8: 1,019.8 | C8: 36.9% | D8: 961.1 | E8: 36.2% | F8: 6.1%
A9: Investments in and advances to unconsolidated companies | B9: 2.0 | C9: 0.1% | D9: 2.0 | E9: 0.1% | F9: 0.0%
A10: Property, plant and equipment, net | B10: 1,328.3 | C10: 48.0% | D10: 1,272.0 | E10: 47.9% | F10: 4.4%
A11: Goodwill | B11: 261.9 | C11: 9.5% | D11: 260.9 | E11: 9.8% | F11: 0.4%
A12: Deferred income taxes | B12: 59.1 | C12: 2.1% | D12: 66.2 | E12: 2.5% | F12: -10.7%
A13: Other noncurrent assets | B13: 95.8 | C13: 3.5% | D13: 91.1 | E13: 3.4% | F13: 5.2%
A14: Total assets | B14: 2,766.9 | C14: 100.0% | D14: 2,653.3 | E14: 100.0% | F14: 4.3%
A15: Current liabilities:
A16: Accounts payable and accrued expenses | B16: 382.4 | C16: 13.8% | D16: 360.5 | E16: 13.6% | F16: 6.1%
A17: Current portion of long-term debt and capital lease obligations | B17: 0.6 | C17: 0.0% | D17: 0.6 | E17: 0.0% | F17: 0.0%
A18: Income taxes and other taxes payable | B18: 10.8 | C18: 0.4% | D18: 8.0 | E18: 0.3% | F18: 35.0%
A19: Total current liabilities | B19: 393.8 | C19: 14.2% | D19: 369.1 | E19: 13.9% | F19: 6.7%
A20: Long-term debt and capital lease obligations | B20: 357.0 | C20: 12.9% | D20: 231.7 | E20: 8.7% | F20: 54.1%
A21: Retirement benefits | B21: 96.2 | C21: 3.5% | D21: 93.6 | E21: 3.5% | F21: 2.8%
A22: Other noncurrent liabilities | B22: 42.4 | C22: 1.5% | D22: 50.8 | E22: 1.9% | F22: -16.5%
A23: Deferred income taxes | B23: 86.3 | C23: 3.1% | D23: 91.7 | E23: 3.5% | F23: -5.9%
A24: Total liabilities | B24: 975.7 | C24: 35.3% | D24: 836.9 | E24: 31.5% | F24: 16.6%
A25: Commitments and contingencies (See note 16)
A26: Shareholders' equity:
A27: Ordinary shares, $0.01 par value; 200,000,000 shares authorized; 48,759,481 and 51,256,906 issued and outstanding, respectively | B27: 0.5 | C27: 0.0% | D27: 0.5 | E27: 0.0% | F27: 0.0%
A28: Paid-in capital | B28: 522.5 | C28: 18.9% | D28: 549.7 | E28: 20.7% | F28: -4.9%
A29: Retained earnings | B29: 1,275.0 | C29: 46.1% | D29: 1,285.8 | E29: 48.5% | F29: -0.8%
A30: Accumulated other comprehensive loss | B30: (30.6) | C30: -1.1% | D30: (44.2) | E30: -1.7% | F30: -30.8%
A31: Total shareholders' equity | B31: 1,791.2 | C31: 64.7% | D31: 1,816.4 | E31: 68.5% | F31: -1.4%
A32: Total liabilities and shareholders' equity | B32: 2,766.9 | C32: 100.0% | D32: 2,653.3 | E32: 100.0% | F32: 4.3%

Sheet Solvency Ratios
A1: Working Capital = | B1: Current Assets - Current Liabilities
B2: ='CONSOLIDATED BALANCE SHEETS'!B8-'CONSOLIDATED BALANCE SHEETS'!B19 -> 626
A4: Current Ratio = | B4: Current Assets / Current Liabilities
B5: ='CONSOLIDATED BALANCE SHEETS'!B8/'CONSOLIDATED BALANCE SHEETS'!B19 -> 2.6
A7: Acid Test Ratio = | B7: (Cash + Marketable Securities + Current Accounts receivable) / Current Liabilites
B8: =('CONSOLIDATED BALANCE SHEETS'!B3+'CONSOLIDATED BALANCE SHEETS'!B4+'CONSOLIDATED BALANCE SHEETS'!B5)/'CONSOLIDATED BALANCE SHEETS'!B19 -> 1.2
A10: Inventory Turnover = | B10: COGS / Average Inventory
A11: Avg Inventory (2016+2017)/2 | B11: ='CONSOLIDATED STATEMENTS OF INCO'!B5/' Solvency Ratios'!A12 -> 7.3
A12: =('CONSOLIDATED BALANCE SHEETS'!D6+'CONSOLIDATED BALANCE SHEETS'!B6)/2 -> 517.5
A14: Days Sales in receivables = | B14: Avg AR / Avg daily credit sales
A15: Avg daily sales (sales / 365) | B15: =A30/A16 -> 37.7
A16: ='CONSOLIDATED STATEMENTS OF INCO'!B4/365 -> 11.2
A18: Days Sales in inventory = | B18: Avg inventory / Avg daily COGS
A19: Avg daily COGS = COGS/365 | B19: =A12/A20 -> 50.3
A20: ='CONSOLIDATED STATEMENTS OF INCO'!B5/365 -> 10.28575342
A22: Debt to equity ratio = | B22: Total liabilities / total stockholders equity
B23: ='CONSOLIDATED BALANCE SHEETS'!B24/'CONSOLIDATED BALANCE SHEETS'!B31 -> 0.5
A25: Times - interest - earned = | B25: (Net income + interest expense + interest expense) / interest expense
B26: =('CONSOLIDATED STATEMENTS OF INCO'!B17+'CONSOLIDATED STATEMENTS OF INCO'!B12+'CONSOLIDATED STATEMENTS OF INCO'!B16)/'CONSOLIDATED STATEMENTS OF INCO'!B12 -> 23.5
A28: AR Turnover = | B28: Net sales / Avg AR
A29: Avg AR (2016+2017)/2 | B29: ='CONSOLIDATED STATEMENTS OF INCO'!B4/' Solvency Ratios'!A30 -> 9.7
A30: =('CONSOLIDATED BALANCE SHEETS'!D4+'CONSOLIDATED BALANCE SHEETS'!D5+'CONSOLIDATED BALANCE SHEETS'!B4+'CONSOLIDATED BALANCE SHEETS'!B5)/2 -> 422.3

Sheet Performance Ratios
A1: Asset Turnover = | B1: Net Sales / Avg total assets
A2: Avg Total Asset (2016+2017)/2 | B2: ='CONSOLIDATED STATEMENTS OF INCO'!B4/'Performance Ratios'!A3 -> 1.5
A3: =('CONSOLIDATED BALANCE SHEETS'!D14+'CONSOLIDATED BALANCE SHEETS'!B14)/2 -> 2710.1
A4: Return on Sales = | B4: (Net Income + net of tax interest expense) / Sales
A5: net of tax interest = interest expense (1-tax rate) | B5: =('CONSOLIDATED STATEMENTS OF INCO'!B17+'Performance Ratios'!A6)/'CONSOLIDATED STATEMENTS OF INCO'!B4 -> 0.03
A6: ='CONSOLIDATED STATEMENTS OF INCO'!B12*(1-0.35) -> 4.16
A7: Return on Assets = | B7: (net income + net of tax interest expense) / Avg total assets
B8: =('CONSOLIDATED STATEMENTS OF INCO'!B17+'Performance Ratios'!A6)/'Performance Ratios'!A3 -> 0.05
A10: Return on Equity = | B10: Net income / Avg stockholders equity
A11: Avg stockholder equity = (2016+2017)/2 | B11: ='CONSOLIDATED STATEMENTS OF INCO'!B17/'Performance Ratios'!A12 -> 0.07
A12: =('CONSOLIDATED BALANCE SHEETS'!D31+'CONSOLIDATED BALANCE SHEETS'!B31)/2 -> 1803.8
A14: Average Interest Rate = | B14: Interest expense / Avg total liabilities
A15: Avg total liabilities = (2016+2017)/2 | B15: ='CONSOLIDATED STATEMENTS OF INCO'!B12/'Performance Ratios'!A16 -> 0.71%
A16: =('CONSOLIDATED BALANCE SHEETS'!D24+'CONSOLIDATED BALANCE SHEETS'!B24)/2 -> 906.3
A18: Gross Margin = | B18: Gross profit / Net Sales
B19: ='CONSOLIDATED STATEMENTS OF INCO'!B6/'CONSOLIDATED STATEMENTS OF INCO'!B4 -> 8.1%
